Cogmind - Beta 13 @@@ ROGUE MODE // 2024.04.21 @ 17:20:57 Player: szymekc Result: Destroyed by 37-1RD(R) with Subdweller Machine Gun Performance ------------- Evolutions (0) 0 Regions Visited (2) 400 Robots Destroyed (30) 150 Value Destroyed (849) 849 Prototype IDs (2) 40 Alien Tech Used (0) 0 Bonus (0) 0 TOTAL SCORE: 1439 Bonus ------- None Cogmind --------- Core Integrity 0/250 Matter 235/300 Energy 102/125 System Corruption 0% Temperature Cool (0) Movement Treading (160) Location -10/Subcaves Parts ------- > --- POWER (1) -------- Light Ion Engine > --- PROPULSION (2) --- Spiked Treads > --- UTILITY (2) ------ (None) > --- WEAPON (2) ------- Subdweller Beam Cannon Battle Cannon > --- INVENTORY (5) ---- Disposable Heat Sink Subdweller Beam Cannon Subdweller Shrapnel Launcher Shrapnel Trap Peak State ------------ > --- POWER ------------ Ion Engine > --- PROPULSION ------- Light Treads Spiked Treads > --- UTILITY ---------- Subdweller Optics Light Armor Plating > --- WEAPON ----------- Subdweller Machine Gun Light Cannon > --- INVENTORY -------- Light Ion Engine Authchip [R/Combat] Subdweller Beam Cannon Subdweller Shrapnel Launcher Shrapnel Trap [Rating: 11] Favorites ----------- Power Ion Engine Engine Ion Engine Propulsion Light Treads Treads Light Treads Leg Aluminum Leg Wheel Compact Wheel Utility Light Armor Plating Device Subdweller Optics Storage Huge Storage Unit Processor Targeting Computer Protection Light Armor Plating Weapon Light Assault Rifle Energy Gun Riot Gun Energy Cannon Subdweller Beam Cannon Ballistic Gun Light Assault Rifle Ballistic Cannon Light Cannon Special Weapon Mining Laser Build | -11 -10 -10 ------- Run | Yrd Mat Sub Slots Evolved . | . . . Power . | . . . Propulsion . | . . . Utility . | . . . Weapon . | . . . Parts Attached 32 | 3 15 14 Power 1 | . . 1 Engine 1 | . . 1 Core . | . . . Reactor . | . . . Propulsion 6 | 2 3 1 Treads 5 | 2 2 1 Leg . | . . . Wheel 1 | . 1 . Hover . | . . . Flight . | . . . Utility 8 | . 3 5 Device 2 | . . 2 Storage 1 | . 1 . Processor 1 | . 1 . Hackware . | . . . Protection 4 | . 1 3 Artifact . | . . . Weapon 17 | 1 9 7 Energy Gun 2 | . . 2 Energy Cannon 1 | . . 1 Ballistic Gun 8 | 1 5 2 Ballistic Cannon 2 | . . 2 Launcher . | . . . Special Weapon 4 | . 4 . Impact Weapon . | . . . Slashing Weapon . | . . . Piercing Weapon . | . . . Special Melee Weapon . | . . . Unidentified Prototypes . | . . . Parts Lost 7 | . 1 6 Power . | . . . Propulsion 2 | . 1 1 Utility 3 | . . 3 Weapon 2 | . . 2 Highest Loss Streak 2 | . 1 2 To Critical Strikes . | . . . Average Slot Usage (%) 97 | . 97 96 Engine 14 | . 14 14 Treads 26 | . 25 26 Device 2 | . . 4 Storage 6 | . 14 . Processor 1 | . 4 . Protection 15 | . 7 21 Energy Gun 2 | . . 4 Ballistic Gun 13 | . 23 5 Ballistic Cannon 10 | . . 17 Special Weapon 2 | . 4 . Naked Turns . | . . . Heaviest Build 90 | 12 90 27 Greatest Support 40 | 40 40 40 Greatest Overweight (x) 5 | . 5 1 Average Overweight (x) . | . 2 . Largest Inventory Capacity 25 | 8 25 5 Average Capacity 13 | 8 24 5 Most Carried 25 | 6 25 5 Average Carried 10 | 6 18 4 Final Capacity 25 | 8 25 5 Final Carried 24 | 6 24 4 Class Distribution -------------------- 100% | Mutant Dominant Class ---------------- Mutant | -10/Materials Mutant | -10/Subcaves Resources | -11 -10 -10 ----------- Run | Yrd Mat Sub Matter Collected 1301 | 230 348 723 Remotely . | . . . Salvage Created 981 | . 548 433 Parts 60 | . 31 29 Haulers Intercepted 2 | . 2 . Recyclers Shooed . | . . . Parts Field Recycled . | . . . Retrieved Matter . | . . . Parts Self-Destructed 5 | . . 5 Prevented . | . . . Kills | -11 -10 -10 ------- Run | Yrd Mat Sub Combat Hostiles Destroyed 24 | . 12 12 Guns 17 | . 12 5 Cannons 7 | . . 7 Classes Destroyed 6 | . 5 1 Hauler 2 | . 2 . Operator 1 | . 1 . Watcher 3 | . 3 . Swarmer 5 | . 5 . Grunt 7 | . 7 . Subdweller 12 | . . 12 Best Kill Streak 4 | . 4 2 Combat Bots Only 3 | . 3 2 Max Kills in Single Turn 1 | . 1 1 Gunslinging . | . . . Exploded . | . . . Melee . | . . . Uniques/NPCs Destroyed . | . . . Combat | -11 -10 -10 -------- Run | Yrd Mat Sub Hostile Shots Fired 160 | . 80 80 Missed 52 | . 25 27 Damage Taken 1799 | . 566 1233 Core 259 | . 114 145 Absorbed by Shields . | . . . Regen/Repaired (Parts) 98 | . 98 . Core Remaining (%) 100 | 100 . . Volleys Fired 213 | . 90 123 Largest 2 | . 2 2 Hottest 120 | . 120 119 Shots Fired 338 | . 149 189 Gun 160 | . 126 34 Cannon 155 | . . 155 Launcher . | . . . Special 23 | . 23 . Kinetic 289 | . 126 163 Thermal 27 | . 23 4 Explosive . | . . . Electromagnetic 22 | . . 22 Robot Hit Streak 22 | . 14 22 Robot Miss Streak 4 | . 4 4 Penetration Max . | . . . Secondary Targets 3 | . 3 . Max Gunslinging Chain 1 | . 1 . Shots Hit Robots 197 | . 97 100 Core Hits 73 | . 42 31 Critical Kills . | . . . Critical Parts Destroyed 1 | . 1 . Critical Strikes 6 | . 1 5 Destroy 1 | . 1 . Blast 5 | . . 5 Melee Attacks . | . . . Impact . | . . . Slashing . | . . . Piercing . | . . . Sneak Attacks . | . . . Combat Hostiles . | . . . Follow-up Attacks . | . . . Damage Inflicted 2246 | . 814 1432 Guns 1126 | . 810 316 Cannons 1116 | . . 1116 Explosions . | . . . Melee . | . . . Ramming 4 | . 4 . Kinetic 1921 | . 810 1111 Thermal 79 | . . 79 Explosive . | . . . Electromagnetic 242 | . . 242 Impact . | . . . Slashing . | . . . Piercing . | . . . Highest Corruption . | . . . Average Corruption . | . . . Corruption Purged . | . . . Corruption Blocked . | . . . Overload Shots . | . . . Overflow Damage . | . . . Projectiles . | . . . Explosions . | . . . Melee . | . . . Knockbacks 13 | . . 13 Impact . | . . . Kinetic 13 | . . 13 Secondary . | . . . Self-Inflicted Damage . | . . . Shots . | . . . Rammed 1 | . 1 . Targets Rammed 1 | . 1 . Kicked . | . . . Crushed . | . . . Highest Temperature 111 | . 111 . Average Temperature 28 | . 28 . Received Heat Transfer 351 | . 234 117 Siege Activations . | . . . Robots Corrupted . | . . . Combat Hostiles . | . . . Parts Fried 1 | . . 1 Impact Corruptions . | . . . Robots Melted . | . . . Combat Hostiles . | . . . Parts Melted . | . . . Heat Transferred 111 | . . 111 Parts Sabotaged . | . . . Parts Stolen . | . . . Parts Stripped . | . . . Power Chain Reactions . | . . . Alert | -11 -10 -10 ------- Run | Yrd Mat Sub Peak Influence 168 | . 168 . Initial . | . . . Average 54 | . 54 . Maximum Alert Level . | . . . Low Security (%) 100 | 100 100 . Level 1 . | . . . Level 2 . | . . . Level 3 . | . . . Level 4 . | . . . Level 5 . | . . . High Security . | . . . Max Security . | . . . Squads Dispatched 3 | . 3 . Investigation 2 | . 2 . Extermination . | . . . Reinforcement 1 | . 1 . Assault . | . . . Garrison . | . . . Intercept . | . . . Searches Triggered . | . . . Construction Impeded . | . . . Haulers Reinforced . | . . . Active Scanning Responses . | . . . Cargo Convoy Interrupts . | . . . Stealth | -11 -10 -10 --------- Run | Yrd Mat Sub Distress Signals 2 | . 2 . Communications Jammed . | . . . Distress Signals . | . . . Times Spotted 35 | . 22 13 Peak Tracking Total 4 | . 4 2 Tactical Retreats . | . . . Traps | -11 -10 -10 ------- Run | Yrd Mat Sub Traps Triggered 3 | . . 3 Indirectly . | . . . Trap Hack Attempts . | . . . Triggered . | . . . Disarmed . | . . . Reprogrammed . | . . . Reused . | . . . Traps Extracted . | . . . Installed . | . . . Triggered . | . . . Most Traps Carried 1 | . . 1 Machines | -11 -10 -10 ---------- Run | Yrd Mat Sub Machines Disabled . | . . . Max in Single Turn . | . . . Machines Repaired . | . . . Machines Dismantled . | . . . Machines Sabotaged . | . . . Overloaded Fab Kills . | . . . Hacking | -11 -10 -10 --------- Run | Yrd Mat Sub Machines Accessed 11 | . 10 1 Terminals 7 | . 7 . Fabricators . | . . . Repair Stations 1 | . 1 . Recycling Units 2 | . 2 . Scanalyzers . | . . . Garrison Access . | . . . Total Hacks 34 | . 31 3 Successful 19 | . 16 3 Failed 14 | . 14 . Catastrophic . | . . . Database Lockouts 1 | . 1 . Manual 16 | . 16 . Terminals 21 | . 21 . Fabricators . | . . . Repair Stations 2 | . 2 . Recycling Units 8 | . 8 . Scanalyzers . | . . . Garrison Access . | . . . Terminal Hacks 9 | . 6 3 Record 3 | . . 3 Robot Analysis 1 | . 1 . Prototype ID Bank 1 | . 1 . Unreport Threat 1 | . 1 . Locate Traps 1 | . 1 . Hauler Manifests 1 | . 1 . Zone Layout 1 | . 1 . Fabricator Hacks . | . . . Repair Station Hacks 2 | . 2 . Scan Component 1 | . 1 . Repair 1 | . 1 . Recycling Unit Hacks 1 | . 1 . Retrieve Components 1 | . 1 . Scanalyzer . | . . . Garrison Access Hacks . | . . . Unauthorized Hacks 7 | . 7 . Terminals 4 | . 4 . Track 2 | . 2 . Botnet 2 | . 2 . Fabricators . | . . . Repair Stations . | . . . Recycling Units 3 | . 3 . Mask 1 | . 1 . Tunnel 2 | . 2 . Scanalyzers . | . . . Garrison Access . | . . . Data Cores Recovered 1 | . 1 . Used . | . . . Hacking Detections 9 | . 9 . Full Trace Events . | . . . Feedback Events . | . . . Feedback Blocked . | . . . Robot Schematics Acquired . | . . . Robots Built . | . . . Authchips . | . . . Time . | . . . Total Robot Build Rating . | . . . Part Schematics Acquired . | . . . Parts Built . | . . . Authchips . | . . . Time . | . . . Total Part Build Rating . | . . . Parts Repaired 1 | . 1 . Time 13 | . 13 . Parts Recycled . | . . . Recycled Matter . | . . . Retrieved Matter . | . . . Retrieved Components 10 | . 10 . Parts Scanalyzed . | . . . Part Schematics Acquired . | . . . Parts Damaged . | . . . Bothacking | -11 -10 -10 ------------ Run | Yrd Mat Sub Used RIF Installer . | . . . Robots Hacked . | . . . Non-combat . | . . . Combat . | . . . Robot Hacks Applied . | . . . Relay Couplers Released . | . . . Fabnet Peak Effective % . | . . . Robots Rewired . | . . . Allies Hacked . | . . . Hacks Repelled . | . . . Allies | -11 -10 -10 -------- Run | Yrd Mat Sub Total Allies . | . . . Largest Group . | . . . Highest-Rated Group . | . . . Highest-Rated Ally . | . . . Total Orders . | . . . Ally Attacks . | . . . Total Damage . | . . . Kills . | . . . Allies Corrupted . | . . . Allies Melted . | . . . Intel | -11 -10 -10 ------- Run | Yrd Mat Sub Robot Analysis Total 1 | . 1 . Derelict Logs Recovered 2 | . . 2 Drone Launches . | . . . Drone Recoveries . | . . . Exploration | -11 -10 -10 ------------- Run | Yrd Mat Sub Turns Passed 4792 | 5 2109 2678 Spaces Moved 2020 | 1 641 1378 Core . | . . . Treads 1865 | 1 486 1378 Legs . | . . . Wheels 155 | . 155 . Hover . | . . . Flight . | . . . Fastest Speed 160 | 160 160 160 Average Speed 199 | 160 275 163 Slowest Speed 320 | 160 320 260 Overloaded Moves . | . . . Propulsion Burnouts . | . . . Robots Hopped . | . . . Cave-ins Triggered . | . . . Exploration Rate (%) 58 | 2 97 77 Regions Visited 2 Branch Regions 1 Pre-discovered Areas 4 | . 2 2 Known Exits Taken . | . . . Unknown Exits Taken 2 | 1 1 . Scrap Searched 6 | . . 6 Spaces Dug 21 | . 10 11 Terrain Destroyed 24 | . 12 12 Melee . | . . . Projectile 24 | . 12 12 AOE . | . . . Terrain Rammed . | . . . Walls Destroyed . | . . . Machines Disabled . | . . . Actions | -11 -10 -10 --------- Run | Yrd Mat Sub Total 2427 | 3 808 1616 Wait 113 | . 34 79 Move 2018 | . 640 1378 Hop . | . . . Pick Up 29 | . 22 7 Fast Attach 12 | . 5 7 Attach 4 | . 1 3 Detach . | . . . Swap 16 | 3 9 4 Drop 19 | . 6 13 Fire 213 | . 90 123 Melee . | . . . Ram . | . . . Kick . | . . . Crush 1 | . 1 . Escape Stasis . | . . . Rewire . | . . . Trap . | . . . Miscellaneous 2 | . . 2 Route ------- -11/Scrapyard -10/Materials (discovered 5 exits: [*Mat x2] / [*Min x2] / *Sub) -10/Subcaves (discovered 2 exits: [*Mat x2]) History --------- Turn | Location | Event 6 | -11/Scrapyard | Discovered new exit (range 0) 6 | -11/Scrapyard | Entered Materials 278 | -10/Materials | Discovered new exit (range 15) 300 | -10/Materials | Build established: Mutant 930 | -10/Materials | Discovered new exit (range 16) 1175 | -10/Materials | Discovered new exit (range 4) 1535 | -10/Materials | Discovered new exit (range 16) 1675 | -10/Materials | Central database locked down 1795 | -10/Materials | Discovered new exit (range 10) 1829 | -10/Materials | Repaired Lgt. Treads 2115 | -10/Materials | Entered Subcaves 2194 | -10/Subcaves | Ambushed by Subdwellers from Twisted Machinery 2245 | -10/Subcaves | Learned location of Zion (-7) 2255 | -10/Subcaves | Core integrity fell below 50% 2407 | -10/Subcaves | Discovered new exit (range 8) 2594 | -10/Subcaves | A swath of the cavern ceiling suddenly collapsed 2866 | -10/Subcaves | Shifting Twisted Machinery released Riot Gun 2970 | -10/Subcaves | Shifting Twisted Machinery released Flamer 3213 | -10/Subcaves | Met a Zionite searching for "candidates" 3244 | -10/Subcaves | Shifting Twisted Machinery released Piercing Trap 3253 | -10/Subcaves | Shifting Twisted Machinery released Battle Rifle 3449 | -10/Subcaves | Visited Clippyterm 3454 | -10/Subcaves | Learned Factory trap positions 4208 | -10/Subcaves | Learned 2 Materials zone layouts 4319 | -10/Subcaves | Core integrity fell below 20% 4514 | -10/Subcaves | Discovered new exit (range 6) 4793 | -10/Subcaves | Destroyed by 37-1RD(R) with Subdweller Machine Gun Last Messages --------------- 04643_ Acquired 2 matter. 04649_ Subatomizers dissect the Sub. Optics. 04649_ Acquired 31 matter. 04651_ Acquired 4 matter. 04654_ Acquired 2 matter. 04659_ Subatomizers dissect the Sub. Optics. 04662_ Acquired 6 matter. 04664_ Acquired 7 matter. 04687_ Subatomizers dissect the Sub. Optics. 04688_ Acquired 65 matter. 04716_ Acquired 14 matter. 04721_ Acquired 11 matter. 04732_ Acquired 50 matter. 04771_ N2-RFY(R) knocked back. 04782_ Lgt. Cannon destroyed. 04784_ N2-RFY(R) knocked back. 04787_ N2-RFY(R) destroyed. 04790_ 37-1RD(R) knocked back. 04791_ Scrap Shield destroyed. 04793_ 37-1RD(R) knocked back. Map ----- +----------------------------------------------------+ | ?????????????????????????????????????????????????? | | ?????????????????????????????????????????????????? | | ?????????????????????????????????????????????????? | | ?????????????????????????????????????????????????? | | ?????????????????????????????????????????????????? | | ?????????????????????????????????????????????????? | | ?????????????????????????????????????????????????? | | ?????????????????????????????????????????????????? | | ?????????????????????????????????????????????????? | | ?????????????????????????????????????????????????? | | ?????????????????????????????????????????????????? | | ?????????????????????????????????????????????????? | | ?????????????????????????????????????????????????? | | ????????????????????????????#####????????????????? | | ???????###?????????????????? %##? #???????????? | | ###???## ##????????????????? # %#???????????? | | ##?## ###??????????????? # #???????????? | | % ###%& #??????????????# % ###??????????? | | !" &* #???????????????# ??????????? | | !! & ###??????????????## % ???????????? | | " &######???????????## % %#?????????????? | | ## " ### ##??######### #??????????????? | | ##" " ! #### ## % #???????????????? | | #### % % #???????????????? | | "## ! ###### % ##??????????????? | | ""### ## # ##????### @ % #??????????????? | | """""####### #???????# #; %% #??????????????? | | """ ##??# #?????# ## %= ##??????????????? | | " "#??# #?????## # R #???????????????? | | ""# ## ##??????## #;# ###??????????????? | | "" #????????# #??????????????? | | """ #????????# #?????????????? | | """### # ###???????# #?????????????? | | ##"##??#####????????# #?????????????? | | ??##????????????????# ##?????????????? | | ????????????????????## ##??????????????? | | ?????????????????????### ???????????????? | | ???????????????????????# ??????????????? | | ??????????????????????? ?????????????? | | ?????????????????????? &#### ????????????? | | ??????????????????????" &%#??? ???????????? | | ?????????????????????"" """"" ???? ??????????? | | ??????????????????????"" """"" ????? ???????????? | | ???????????????????????"" ????? ?????????????????? | | ???????????????????????? ????? ?????????????????? | | ?????????????????????????????????????????????????? | | ?????????????????????????????????????????????????? | | ?????????????????????????????????????????????????? | | ?????????????????????????????????????????????????? | | ###??????????????????????????????????????????????? | +----------------------------------------------------+ Best States ------------- Heat Dissipation 25 Energy Generation 10 Energy Capacity 250 Matter Stores 300 Matter Capacity 300 Sight Range 21 Terrain Scan Density 10 Armor Coverage 800 Evasion (%) 40 Targeting Accuracy 5 Recoil Reduction 2 Authchip Count 4 Item Schematics ----------------- None Robot Schematics ------------------ None Fabricated ------------ Nothing Alien Tech Used ----------------- None Achievements -------------- None Challenges ------------ None Game ------ Seed XenonRelaySegregator Manual? 0 Play Time 00:29:52 Cumulative 181.5 hours Start 2024.04.21 @ 16:56:58 End 2024.04.21 @ 17:20:57 Sessions 1 Manual Loads 0 Difficulty Rogue Special Mode None Game No. 72 Rogue 70 Adventurer 2 Explorer 0 Win Type - Total 5 Types 4/0/0/1/0/0/0/0/0 Lore% 63 Gallery% 76 Achievement% 63 Wizard Run 0 Options --------- Layout 2 ASCII 0 Keyboard 0 Movement Numpad Keybinds 0 Fullscreen 2 Font 32/SmallcapsGlow Map View 50x44 Zoom Use 0% Tactical HUD 1 Map Filters NONE Filters NONE Steam 1 RUN: 52d551f9-93f3-446f-83eb-ecf7eba5d271